bitfinex-derivatives/quotes_SOLF0:USTF0_20251107
["timestamp","ask_amount","ask_price","bid_price","bid_amount"]
[1762542988164,7.84359229,163.0,162.99,0.04100558]
[1762542988762,3.06,162.99,162.92,6.72]
[1762542988968,7.84359229,162.98,162.92,6.72]
[1762542989269,3.06,162.98,162.92,9.67]
[1762542989461,3.06,162.96,162.92,6.72]
[1762542989663,3.06,162.96,162.92,6.76669145]
[1762542989664,3.10173758,162.96,162.92,6.76669145]
[1762542990577,0.04173758,162.96,162.92,6.76669145]
[1762542990771,0.04173758,162.96,162.92,9.71669145]
[1762542991070,0.04173758,162.96,162.94,2.95]
[1762542991974,0.04173758,162.96,162.94,8.477]
[1762542992165,0.04173758,162.96,162.95,2.9]
[1762542992368,4.78304267,163.02,162.97,5.5261]
[1762542992670,3.06,163.03,162.97,2.9]
[1762542992867,3.12,163.07,163.0,5.5249]
[1762542993068,4.78205431,163.06,162.97,2.9]
[1762542993367,3.12,163.07,162.97,2.9]
[1762542993577,3.12,163.07,163.0,5.56424238]
[1762542993762,4.78276463,163.06,163.0,0.03924238]
[1762542993966,3.12,163.07,163.0,0.03924238]
[1762542994373,5.70147577,163.11,163.0,2.93924238]
[1762542994576,4.78416484,163.1,163.04,0.04190803]
[1762542994768,3.12,163.08,163.04,0.04190803]
[1762542995073,7.90383399,163.07,163.04,0.04190803]
[1762542995272,3.12,163.07,163.04,0.04190803]
[1762542995472,5.70147577,163.11,163.04,0.04190803]
[1762542995473,3.12,163.11,163.04,0.04190803]
[1762542995677,4.78428962,163.1,163.04,0.04190803]
[1762542995977,1.40109871,163.12,163.06,2.9]
[1762542996171,1.40109871,163.12,163.08,2.9]
[1762542996676,1.40109871,163.12,163.09,5.5219]
[1762542996869,1.40109871,163.12,163.09,8.4219]
[1762542997370,1.40109871,163.12,163.11,2.9]
[1762542997681,3.12,163.18,163.08,5.69]
[1762542997880,7.90288999,163.17,163.11,0.0399498]
[1762542998079,3.12,163.15,163.11,0.0399498]
[1762542998379,4.82636629,163.14,163.11,2.94605898]
[1762542998573,5.70147577,163.17,163.11,2.94605898]
[1762542998773,7.94962841,163.16,163.11,2.94605898]
[1762542998974,4.82962841,163.15,163.12,0.04109327]
[1762542999175,5.70147577,163.18,163.12,0.04109327]
[1762542999371,8.82147577,163.16,163.12,0.04109327]
[1762542999571,7.94707489,163.15,163.12,0.04109327]
[1762542999776,5.70147577,163.16,163.12,0.04109327]
[1762542999777,4.82707489,163.14,163.12,0.04109327]
[1762542999975,4.82707489,163.13,163.12,0.04109327]
[1762543000778,11.22087577,163.18,163.12,0.04109327]
[1762543001082,7.92150795,163.17,163.12,3.00109327]
[1762543001270,4.83150795,163.16,163.12,3.00109327]
[1762543001469,4.83150795,163.15,163.12,3.00109327]
[1762543001674,8.79147577,163.17,163.12,3.00109327]
[1762543001675,4.83150795,163.14,163.12,3.00109327]
[1762543001876,4.83150795,163.13,163.12,3.00109327]
[1762543002476,5.70147577,163.18,163.12,3.00109327]
[1762543002781,4.83410004,163.17,163.13,2.96]
[1762543002976,4.83410004,163.16,163.13,3.00350066]
[1762543003176,4.83410004,163.15,163.13,3.00350066]
[1762543003476,5.70147577,163.2,163.13,3.00350066]
[1762543003675,10.53746262,163.19,163.13,3.00350066]
[1762543003879,4.83598685,163.18,163.13,3.00350066]
[1762543004084,4.83598685,163.17,163.13,3.00350066]
[1762543004272,4.83598685,163.16,163.13,3.00350066]
[1762543004472,4.83598685,163.15,163.13,7.33350066]
[1762543004679,4.83598685,163.14,163.13,7.33350066]
[1762543005580,5.70147577,163.19,163.14,2.96]
[1762543005886,4.81887471,163.18,163.14,2.96]
[1762543006186,10.78029971,163.21,163.16,2.96]
[1762543006187,4.81887471,163.17,163.16,2.96]
[1762543006577,5.70147577,163.22,163.16,2.96]
[1762543006777,5.70147577,163.22,163.15,73.19358608]
[1762543006778,4.76986542,163.21,163.17,3.00035844]
[1762543006984,4.76986542,163.2,163.17,3.00035844]
[1762543007185,4.76986542,163.19,163.17,3.00035844]
[1762543007386,5.5176,163.23,163.17,3.00035844]
[1762543007584,10.38098751,163.22,163.17,3.00035844]
[1762543007883,7.81251104,163.21,163.17,0.04035844]
[1762543008084,3.09,163.19,163.17,0.04035844]
[1762543008288,13.33171104,163.18,163.16,0.04504183]
[1762543008582,7.81251104,163.17,163.16,0.04504183]
[1762543008788,7.81251104,163.17,163.13,4.33]
[1762543008789,13.47098751,163.17,163.13,4.33]
[1762543008992,4.72251104,163.16,163.13,4.33]
[1762543009184,4.72251104,163.15,163.13,4.33]
[1762543009489,4.72251104,163.14,163.13,4.33]
[1762543011183,4.72501383,163.14,163.13,4.33]
[1762543014790,0.0446725,163.15,163.13,4.33]
[1762543014791,0.0446725,163.15,163.13,7.29]
[1762543015384,0.0446725,163.15,163.13,4.33]
[1762543016288,0.0446725,163.15,163.13,7.29]
[1762543016688,0.0446725,163.15,163.14,2.96]
[1762543017383,14.26934522,163.22,163.17,2.96]
[1762543017384,3.09,163.22,163.17,2.96]
[1762543017990,7.81255032,163.21,163.16,5.5196]
[1762543018195,5.5175,163.23,163.17,8.4792]
[1762543018398,8.6075,163.23,163.18,3.00149466]
[1762543019498,3.09,163.23,163.18,8.52039466]
[1762543019995,3.09,163.23,163.18,0.04149466]
[1762543020395,8.6075,163.23,163.18,0.04149466]
[1762543020594,8.72170192,163.27,163.18,3.00149466]
[1762543020791,7.80526556,163.26,163.18,3.00149466]
[1762543020990,3.09,163.29,163.21,8.4777]
[1762543021192,3.09,163.29,163.17,5.63170192]
[1762543021193,4.71313858,163.28,163.23,3.00043353]
[1762543021396,3.09,163.29,163.23,3.00043353]
[1762543021596,3.09,163.32,163.23,3.00043353]
[1762543021791,3.09,163.3,163.26,0.04546122]
[1762543021988,2.86,163.33,163.26,3.00546122]
[1762543022292,2.86,163.38,163.27,3.09]
[1762543022487,2.86,163.37,163.31,0.04430177]
[1762543022693,2.86,163.37,163.32,0.04102287]
[1762543022894,2.86,163.37,163.32,3.13102287]
[1762543023093,5.5117,163.4,163.32,3.13102287]
[1762543023299,2.86,163.41,163.33,3.09]
[1762543023494,7.55673217,163.4,163.35,0.04202482]
[1762543023687,2.86,163.4,163.35,0.04202482]
[1762543024494,5.5115,163.41,163.35,0.04202482]
[1762543024700,7.55318216,163.4,163.35,0.04202482]
[1762543024996,2.86,163.4,163.35,3.13202482]
[1762543025395,2.86,163.4,163.35,0.04202482]
[1762543026601,2.86,163.38,163.35,0.04202482]
[1762543026804,2.86,163.37,163.35,0.04504075]
[1762543028302,8.3729,163.37,163.35,0.04504075]
[1762543028804,2.86,163.36,163.35,0.04504075]
[1762543029005,8.372,163.39,163.35,0.04504075]
[1762543029300,2.86,163.38,163.35,0.04477684]
[1762543030195,2.86,163.36,163.35,0.04477684]
[1762543032299,2.86,163.35,163.25,8.72170192]
[1762543032497,2.86,163.33,163.22,8.66]
[1762543032699,2.86,163.32,163.23,3.09]
[1762543033010,8.3745,163.32,163.23,8.6071]
[1762543033508,0.03886321,163.29,163.26,3.13583537]
[1762543034213,2.86,163.4,163.28,3.09]
[1762543034502,4.69480898,163.39,163.31,3.09]
[1762543034702,2.86,163.4,163.31,3.09]
[1762543035007,4.69404751,163.39,163.31,3.09]
[1762543035304,4.69715189,163.38,163.33,3.1339492]
[1762543035499,8.3718,163.4,163.33,3.1339492]
[1762543035693,4.69715274,163.39,163.33,3.1339492]
[1762543036001,7.55715189,163.38,163.33,3.1339492]
[1762543036200,5.5118,163.4,163.33,3.1339492]
[1762543036397,8.3709,163.42,163.35,3.09]
[1762543036697,4.69877418,163.41,163.37,0.04562038]
[1762543036906,8.3705,163.44,163.37,0.04562038]
[1762543037091,4.6985645,163.43,163.37,0.04562038]
[1762543037297,4.6985645,163.42,163.37,3.13562038]
[1762543037495,1.38447447,163.45,163.37,3.13562038]
[1762543037699,4.69911192,163.44,163.39,3.09]
[1762543037898,7.55928075,163.43,163.4,0.04028826]
[1762543038106,7.55928075,163.42,163.4,0.04028826]
[1762543038299,4.69928075,163.41,163.4,0.04028826]
[1762543039009,7.55928075,163.41,163.31,3.09]
[1762543039208,4.69928075,163.4,163.34,5.5134]
[1762543039408,4.69928075,163.39,163.34,8.6034]
[1762543039611,4.69928075,163.38,163.35,3.09]
[1762543039905,8.52154522,163.41,163.35,3.09]
[1762543040110,0.04011936,163.38,163.35,3.13408157]
[1762543040306,4.70255044,163.37,163.35,0.04408157]
[1762543040612,4.70471994,163.36,163.35,0.04408157]
[1762543041009,2.90011936,163.38,163.35,0.04408157]
[1762543041307,2.86,163.36,163.35,0.04408157]
[1762543041507,7.56467312,163.36,163.35,0.04408157]
[1762543041707,2.86,163.35,163.28,62.0]
[1762543042013,4.70467312,163.34,163.27,3.09]
[1762543042204,4.70467312,163.33,163.27,3.09]
[1762543042405,7.56765824,163.32,163.24,5.63170192]
[1762543042602,4.70765824,163.31,163.23,3.09]
[1762543042806,0.04545232,163.29,163.26,0.03887045]
[1762543043305,7.56884635,163.28,163.26,0.03887045]
[1762543043501,7.56884635,163.27,163.19,3.09]
[1762543043700,4.70884635,163.26,163.19,3.09]
[1762543043901,4.70884635,163.25,163.19,3.09]
[1762543044106,2.86,163.27,163.19,3.09]
[1762543044306,4.71126214,163.26,163.19,3.09]
[1762543044614,0.04450799,163.24,163.21,3.13148764]
[1762543045202,0.04450799,163.24,163.21,0.04148764]
[1762543045412,4.71503491,163.23,163.21,0.04148764]
[1762543045602,2.90450799,163.24,163.21,0.04148764]
[1762543045804,2.86,163.22,163.13,4.33]
[1762543046002,5.67620991,163.24,163.13,4.33]
[1762543046003,2.86,163.18,163.13,4.33]
[1762543046209,7.57538755,163.17,163.13,4.33]
[1762543046410,4.71538755,163.16,163.11,62.98]
[1762543046605,2.86,163.17,163.11,62.98]
[1762543046814,2.86,163.15,163.12,0.04474264]
[1762543047002,2.86,163.15,163.08,5.69]
[1762543047003,7.57761766,163.14,163.08,5.69]
[1762543047204,7.57761766,163.13,163.12,0.0469579]
[1762543047398,2.86,163.12,163.08,5.69]
[1762543047599,2.86,163.1,163.08,5.69]
[1762543048306,7.57690217,163.09,163.0,3.09]
[1762543048512,2.86,163.07,163.05,0.04382066]
[1762543052315,4.08,163.07,163.05,0.04382066]
[1762543052621,2.87,163.06,163.05,0.04382066]
[1762543053010,4.09,163.06,163.05,0.04382066]
[1762543054517,2.87,163.06,163.05,0.04382066]
[1762543054711,2.87,163.05,162.99,5.75]
[1762543054917,2.87,163.02,162.99,5.75]
[1762543055108,2.87,163.02,162.87,2.99]
[1762543055311,5.5259,162.98,162.88,62.0]
[1762543055510,1.7,162.96,162.83,2.99]
[1762543055711,1.7,162.96,162.86,2.99]
[1762543055914,0.04363061,162.91,162.88,0.03866382]
[1762543056420,1.74363061,162.91,162.88,0.03866382]
[1762543057718,0.04363061,162.91,162.88,3.02866382]
[1762543057923,1.7,162.98,162.88,3.02866382]
[1762543058220,1.7,162.98,162.8,2.99]
[1762543058418,7.33170192,162.92,162.81,2.99]
[1762543058622,7.33170192,162.92,162.82,62.0]
[1762543058915,0.03930078,162.89,162.85,3.03554278]
[1762543059128,1.7,162.96,162.85,3.03554278]
[1762543059311,1.7,162.96,162.85,2.99]
[1762543059513,1.7,162.96,162.87,5.5295]
[1762543060322,0.04065473,162.93,162.9,0.03995294]
[1762543060623,1.74065473,162.93,162.9,0.03995294]
[1762543062122,2.96065473,162.93,162.81,6.45]
[1762543062313,1.7,162.92,162.81,6.45]
[1762543062812,1.7,162.91,162.81,11.9813]
[1762543063010,1.7,162.91,162.81,9.33]
[1762543063317,0.04090704,162.88,162.84,0.04659964]
[1762543064314,0.04090704,162.88,162.84,2.92659964]
[1762543065225,0.04090704,162.88,162.85,2.88]
[1762543065921,1.7,162.96,162.87,2.88]
[1762543066118,1.7,163.0,162.87,2.88]
[1762543066321,1.7,163.0,162.9,2.88]
[1762543066817,1.7,163.0,162.88,5.63170192]
[1762543066818,0.04151809,162.97,162.93,2.92127581]
[1762543067612,0.04151809,162.97,162.94,2.88]
[1762543068223,0.04151809,162.97,162.93,2.92127581]
[1762543068821,0.04151809,162.97,162.93,0.04127581]
[1762543069326,1.74151809,162.97,162.93,0.04127581]
[1762543070126,1.7,162.95,162.93,0.04127581]
[1762543070624,1.7,162.93,162.82,2.88]
[1762543071613,0.04074527,162.89,162.86,0.04405899]
[1762543072029,0.04074527,162.89,162.86,2.92405899]
[1762543072728,0.04074527,162.89,162.86,0.04405899]
[1762543073224,0.04074527,162.89,162.86,2.92405899]
[1762543073929,0.04074527,162.89,162.86,0.04405899]
[1762543075128,1.74074527,162.89,162.86,0.04405899]
[1762543077217,7.26974527,162.89,162.86,0.04405899]
[1762543077620,1.74074527,162.89,162.86,0.04405899]
[1762543081324,1.7,162.88,162.86,0.04405899]
[1762543082230,0.04074527,162.89,162.86,3.11405899]
[1762543082625,1.7,162.97,162.9,5.5283]
[1762543082825,1.7,162.97,162.88,3.07]
[1762543083029,6.48248813,162.96,162.88,3.07]
[1762543083226,6.49244106,162.95,162.9,8.5984]
[1762543083431,1.7,162.95,162.87,8.65500337]
[1762543083632,0.03973374,162.93,162.89,0.04411822]
[1762543083832,0.03973374,162.93,162.89,5.57281822]
[1762543084233,1.73973374,162.93,162.89,0.04411822]
[1762543084429,1.7,162.91,162.89,0.04411822]
[1762543084629,6.50205124,162.9,162.89,0.04411822]
[1762543084937,1.7,162.9,162.89,0.04411822]
[1762543085138,1.73973374,162.93,162.89,0.04411822]
[1762543085331,4.81268539,162.92,162.89,0.04411822]
[1762543085528,4.81268539,162.91,162.89,0.04411822]
[1762543085734,0.03973374,162.93,162.89,0.04411822]
[1762543085938,4.8124865,162.92,162.89,0.04411822]
[1762543086139,1.73973374,162.93,162.89,0.04411822]
[1762543086341,4.81361823,162.92,162.89,0.04411822]
[1762543086542,4.81361823,162.91,162.89,0.04411822]
[1762543086736,4.82388928,162.9,162.89,0.04411822]
[1762543086931,6.52388928,162.9,162.89,0.04411822]
[1762543087134,4.82388928,162.9,162.89,0.04411822]
[1762543088335,4.82388928,162.9,162.89,3.11411822]
[1762543088542,8.928e-05,162.9,162.89,3.11411822]
[1762543089238,5.6616345,162.9,162.89,3.11411822]
[1762543089639,5.6616345,162.9,162.89,0.04411822]
[1762543090143,8.928e-05,162.9,162.89,0.04411822]
[1762543091341,5.6616345,162.9,162.89,0.04411822]
[1762543091838,8.928e-05,162.9,162.89,0.04411822]
[1762543092030,8.928e-05,162.9,162.89,3.11411822]
[1762543092233,5.68703507,162.9,162.89,3.11411822]
[1762543092434,8.928e-05,162.9,162.89,3.11411822]
[1762543092640,5.68694579,162.91,162.89,3.11411822]
[1762543092842,5.69251108,162.92,162.9,3.07]
[1762543093138,0.03973374,162.93,162.92,8.5978]
[1762543093938,9.39029971,162.99,162.95,5.5267]
[1762543094139,13.21519971,163.01,162.95,3.07]
[1762543094343,7.69029971,163.0,162.95,3.07]
[1762543094534,7.69029971,163.02,162.96,5.5264]
[1762543094735,7.69029971,163.0,162.96,5.5264]
[1762543094932,0.04057803,163.0,162.96,5.5731793]
[1762543095136,1.74057803,163.0,162.96,0.0467793]
[1762543095339,1.74057803,163.0,162.96,3.1167793]
[1762543095340,7.73087774,163.0,162.96,3.1167793]
[1762543095641,0.04057803,163.0,162.96,3.1167793]
[1762543095836,0.04057803,163.0,162.96,0.0467793]
[1762543096056,1.74057803,163.0,162.96,0.0467793]
[1762543096453,0.04057803,163.0,162.97,3.07]
[1762543097061,0.04057803,163.0,162.99,3.07]
[1762543097658,0.04057803,163.0,162.98,5.5255]
[1762543097959,0.04057803,163.0,162.96,5.5731793]
[1762543098474,0.04057803,163.0,162.96,8.6431793]
[1762543098759,0.04057803,163.0,162.96,3.1167793]
[1762543098957,0.04057803,163.0,162.98,3.07]
[1762543099659,0.04057803,163.0,162.99,65.07]
[1762543100754,1.7,163.08,163.0,3.07]
[1762543101364,1.74,163.13,163.0,3.07]
[1762543101783,1.78718751,163.08,163.05,0.04316009]
[1762543104963,1.78718751,163.08,162.96,11.72500337]
[1762543104964,1.78718751,163.08,162.96,3.07]
[1762543105165,1.74,163.08,162.96,3.07]
[1762543105867,1.78544921,163.04,163.0,0.04154633]
[1762543106172,0.04116099,163.04,163.0,3.11554041]
[1762543106470,1.78116099,163.04,163.0,0.04554041]
[1762543107973,7.30506099,163.04,163.0,0.04554041]
[1762543108470,7.2643,163.03,163.0,0.04554041]
[1762543108666,1.74,163.02,163.0,0.04554041]
[1762543109370,0.04116099,163.04,163.0,3.11554041]
[1762543111675,0.04116099,163.04,163.01,5.5247]
[1762543112262,0.04116099,163.04,163.03,3.05]
[1762543112878,1.78116099,163.04,163.0,0.04554041]
[1762543113171,1.78116099,163.04,162.93,3.05]
[1762543113366,5.5253,163.0,162.94,5.527]
[1762543114068,0.0388898,162.99,162.95,3.09393218]
[1762543114266,0.0388898,162.99,162.95,0.04393218]
[1762543114465,0.0388898,162.99,162.95,3.09393218]
[1762543115474,5.5229,163.07,162.98,3.05]
[1762543115676,1.74,163.08,162.98,3.05]
[1762543115874,1.74,163.08,162.99,62.0]
[1762543116371,5.5232,163.06,162.99,67.5253]
[1762543116572,1.78234723,163.05,163.02,0.04524276]
[1762543116969,7.30584723,163.05,163.02,0.04524276]
[1762543118977,1.74,163.03,163.02,0.04524276]
[1762543120186,2.96,163.03,163.02,0.00342013]
[1762543123986,1.74,163.03,163.02,0.00342013]
[1762543126785,7.2639,163.04,163.02,0.00342013]
[1762543126988,1.74,163.03,163.02,0.00342013]
[1762543129588,14.50110044,163.03,163.02,0.00342013]
[1762543130598,6.81080073,163.03,163.02,0.00342013]
[1762543131689,14.50110044,163.03,163.02,0.00342013]
[1762543132299,6.81080073,163.03,163.02,0.00342013]
[1762543132598,1.74,163.01,162.98,9.8]
[1762543132898,6.81080073,163.0,162.98,9.8]
[1762543133091,5.07080073,162.99,162.98,9.8]
[1762543135191,5.07080073,162.99,162.98,12.73]
[1762543135497,6.81080073,162.99,162.98,9.8]
[1762543136494,14.42395459,162.99,162.98,9.8]
[1762543136998,1.74,162.98,162.91,2.93]
[1762543137194,5.07080073,162.97,162.91,2.93]
[1762543137387,5.07080073,162.96,162.91,2.93]
[1762543137594,5.07080073,162.95,162.91,2.93]
[1762543137903,5.07080073,162.94,162.92,8.4578]
[1762543138192,1.74,162.98,162.92,8.4578]
[1762543138193,5.07080073,162.93,162.92,8.4578]
[1762543138894,5.07080073,162.93,162.92,2.93]
[1762543139194,5.07080073,162.93,162.91,0.0398186]
[1762543139396,5.07080073,162.92,162.91,0.0398186]
[1762543139598,0.04706355,162.95,162.91,2.9698186]
[1762543139799,5.08245863,162.94,162.92,2.93]
[1762543139996,0.04706355,162.95,162.94,2.93]
[1762543140196,5.12939251,162.95,162.94,2.93]
[1762543140393,9.35315386,163.02,162.94,2.93]
[1762543140592,6.82129095,163.01,162.94,2.93]
[1762543140802,5.08129095,163.0,162.94,2.93]
[1762543141001,5.08129095,162.99,162.94,2.93]
[1762543141304,5.08129095,162.98,162.94,2.93]
[1762543141504,5.08129095,162.97,162.94,2.97671456]
[1762543141702,5.08129095,162.96,162.94,2.97671456]
[1762543141900,5.08129095,162.95,162.94,2.97671456]
[1762543142096,0.04456684,162.98,162.96,3.06]
[1762543142796,0.04456684,162.98,162.97,3.06]
[1762543142995,5.12483935,162.98,162.97,3.06]
[1762543143396,5.12483935,162.98,162.95,3.06]
[1762543143594,11.0461,163.07,162.94,5.69335506]
[1762543143595,9.36315386,163.06,162.98,3.06]
[1762543143803,5.07972855,163.05,163.02,3.06]
[1762543144003,5.07972855,163.04,163.02,3.06]
[1762543144201,5.07972855,163.03,162.99,3.06]
[1762543144391,5.07972855,163.02,162.98,5.6466405]
[1762543144701,0.04705451,163.02,162.99,3.06]
[1762543145008,5.0303922,163.01,162.99,3.06]
[1762543145299,5.0303922,163.0,162.98,0.03980177]
[1762543145502,5.0303922,162.99,162.98,0.03980177]
[1762543146099,5.0303922,162.99,162.98,3.09980177]
[1762543146399,0.04705451,163.02,162.98,3.09980177]
[1762543146599,5.03221104,163.01,162.98,3.09980177]
[1762543146798,5.03224826,163.0,162.98,3.09980177]
[1762543146996,0.04705451,163.02,162.98,3.09980177]
[1762543147300,5.03219963,163.01,162.98,0.03980177]
[1762543147503,0.04705451,163.02,162.98,3.09980177]
[1762543147696,5.03327464,163.01,162.98,3.09980177]
[1762543147894,0.04705451,163.02,163.0,8.7066405]
[1762543148094,9.36315386,163.08,163.01,3.06]
[1762543148293,5.11857184,163.07,163.04,3.06]
[1762543148492,5.11857184,163.06,163.04,8.5837]
[1762543148704,14.88445386,163.12,163.05,3.06]
[1762543148907,5.11839705,163.11,163.07,3.06]
[1762543149102,5.11839705,163.1,163.07,3.10386672]
[1762543149303,5.11839705,163.09,163.07,3.10386672]
[1762543149607,5.11839705,163.08,163.07,3.10386672]
[1762543152007,5.11839705,163.08,163.07,0.04386672]
[1762543152209,6.86839705,163.08,163.07,0.04386672]
[1762543152808,12.58436615,163.08,163.07,0.04386672]
[1762543153006,12.58436615,163.08,163.07,3.10386672]
[1762543153007,5.11839705,163.08,163.07,3.10386672]
[1762543155407,0.03993527,163.11,163.07,3.10386672]
[1762543155709,5.11892031,163.1,163.07,3.10386672]
[1762543155907,5.11892031,163.09,163.07,3.10386672]
[1762543156106,5.11892031,163.08,163.07,3.10386672]
[1762543156309,5.11892031,163.08,163.07,0.04386672]
[1762543157400,12.58488941,163.08,163.07,0.04386672]
[1762543158003,1.75,163.07,163.0,11.1716405]
[1762543158205,5.11892031,163.06,163.0,5.525]
[1762543158404,6.86892031,163.05,162.99,3.06]
[1762543158609,6.86892031,163.04,162.99,3.06]
[1762543158807,6.86892031,163.04,163.0,3.06]
[1762543158808,5.11892031,163.03,163.0,3.06]
[1762543159004,5.71588818,163.07,163.0,3.06]
[1762543159204,0.04141563,163.03,163.0,3.10472755]
[1762543159708,0.04141563,163.03,163.02,3.06]
[1762543160211,5.71588818,163.1,163.04,8.5837]
[1762543160408,5.11753188,163.09,163.05,3.06]
[1762543160608,5.11753188,163.08,163.05,3.06]
[1762543160809,5.11753188,163.07,163.06,5.5229]
[1762543161403,5.11753188,163.07,163.05,0.04535187]
[1762543161608,5.11738078,163.06,163.05,0.04535187]
[1762543162310,12.58326896,163.06,162.98,8.7066405]
[1762543162508,10.83326896,163.05,162.98,8.7066405]
[1762543162710,10.64128078,163.04,162.98,8.7066405]
[1762543162905,5.11738078,163.03,162.98,8.7066405]
[1762543163105,6.86738078,163.02,162.98,8.5857]
[1762543163306,5.11738078,163.01,162.98,0.04201791]
[1762543163506,5.11738078,163.0,162.98,0.04201791]
[1762543163706,6.86738078,162.99,162.98,0.04201791]
[1762543163915,6.86738078,162.99,162.92,5.6466405]
[1762543164116,5.11738078,162.98,162.92,5.6466405]
[1762543164315,5.11738078,162.97,162.94,3.06]
[1762543164517,7.2756,162.99,162.94,3.06]
[1762543164816,6.91481822,162.98,162.95,0.03929106]
[1762543165020,5.12008313,162.97,162.95,0.03929106]
[1762543165212,5.12008313,162.96,162.95,0.03929106]
[1762543165816,5.12008313,162.96,162.95,3.09929106]
[1762543166023,0.04473509,162.98,162.95,3.09929106]
[1762543166217,5.11947154,162.97,162.95,3.09929106]
[1762543166520,0.04473509,162.98,162.95,3.09929106]
[1762543166722,5.1189762,162.97,162.95,3.09929106]
[1762543166922,5.1189762,162.96,162.95,3.09929106]
[1762543167327,5.11846236,162.96,162.95,0.03929106]
[1762543169527,6.86846236,162.96,162.95,0.03929106]
[1762543169719,5.11846236,162.96,162.95,0.03929106]
[1762543169916,6.86846236,162.96,162.95,0.03929106]
[1762543172123,5.11846236,162.96,162.95,0.03929106]
[1762543174228,6.85846236,162.96,162.95,0.03929106]
[1762543174423,1.74,162.95,162.88,62.0]
[1762543174623,6.85846236,162.94,162.87,10.58]
[1762543174925,5.11846236,162.93,162.87,10.58]
[1762543175120,1.74,162.94,162.87,10.58]
[1762543175324,0.04443453,162.92,162.89,5.56783304]
[1762543175534,0.04443453,162.92,162.89,0.03913304]
[1762543176028,0.04443453,162.92,162.89,5.56783304]
[1762543177019,0.04443453,162.92,162.89,0.03913304]
[1762543177218,0.04443453,162.92,162.89,2.93913304]
[1762543177831,0.04443453,162.92,162.89,8.46783304]
[1762543178331,0.04443453,162.92,162.9,8.4284]
[1762543178730,0.04443453,162.92,162.9,2.9]
[1762543179430,0.04443453,162.92,162.89,0.03913304]
[1762543180228,1.78443453,162.92,162.89,0.03913304]
[1762543180532,1.74,162.9,162.89,0.03913304]
[1762543180935,6.85673875,162.9,162.89,0.03913304]
[1762543181229,1.74,162.88,162.87,10.58]
[1762543181435,1.74,162.87,162.78,68.3666405]
[1762543181625,1.74,162.85,162.76,2.93]
[1762543181825,5.5314,162.82,162.76,2.93]
[1762543182231,1.74,162.8,162.77,0.04161253]
[1762543182535,1.74,162.8,162.77,0.04202419]
[1762543182536,0.04116575,162.8,162.77,0.04202419]
[1762543182738,6.83631464,162.88,162.79,2.93]
[1762543183034,1.74,162.88,162.81,14.1080405]
[1762543183738,0.04271723,162.86,162.81,14.1080405]
[1762543183934,0.04271723,162.86,162.84,5.6466405]
[1762543184132,0.04271723,162.86,162.84,8.5766405]
[1762543184436,0.04271723,162.86,162.84,14.1070405]
[1762543185234,0.04271723,162.86,162.83,8.62150283]
[1762543185432,0.04271723,162.86,162.84,2.93]
[1762543186438,0.04271723,162.86,162.85,2.17114879]
[1762543187137,0.04271723,162.86,162.85,5.10114879]
[1762543187341,1.74,162.92,162.86,2.93]
[1762543187534,1.74,162.92,162.89,2.17114879]
[1762543187834,2.17114879,162.98,162.89,2.17114879]
[1762543187835,1.74,162.98,162.91,2.17114879]
[1762543188026,1.74,163.02,162.96,2.17114879]
[1762543188230,1.74,163.0,162.98,2.17114879]
[1762543188429,1.74,163.0,162.97,0.03874942]
[1762543188731,1.78410814,163.0,162.97,0.03874942]
[1762543190236,1.74,162.98,162.97,0.03874942]
[1762543190540,1.74,162.99,162.97,0.03874942]
[1762543194245,5.09745916,162.98,162.97,0.03874942]
[1762543194638,1.74,162.99,162.97,0.03874942]
[1762543194845,5.09741182,162.98,162.97,0.03874942]
[1762543195645,1.78410814,163.0,162.97,0.03874942]
[1762543195942,5.09833229,162.99,162.97,0.03874942]
[1762543196134,5.09833229,162.98,162.97,0.03874942]
[1762543197148,5.09833229,162.98,162.97,2.96874942]
[1762543197443,0.04410814,163.0,162.97,2.96874942]
[1762543197644,0.04410814,163.0,162.98,8.4557]
[1762543198040,0.04410814,163.0,162.98,2.93]
[1762543199237,5.10024408,162.99,162.97,0.03874942]
[1762543199540,6.84102962,162.98,162.97,0.03874942]